[Event "*** MasterClass Titled Tuesday Blitz"]
[Site "Chess.com"]
[Date "2017.11.07"]
[Round "9"]
[White "chessking2151"]
[Black "Vamostodorecto"]
[Result "1-0"]
[WhiteElo "2388"]
[BlackElo "2288"]
[TimeControl "180+2"]
[EndTime "16:05:29 PST"]
[Termination "chessking2151 won by resignation"]

1. e4 {[%clk 0:03:01.9]} 1... e6 {[%clk 0:02:57.9]} 2. d4 {[%clk 0:03:02.4]}
2... d5 {[%clk 0:02:58.4]} 3. Nd2 {[%clk 0:03:03.7]} 3... Nf6 {[%clk 0:02:58]}
4. e5 {[%clk 0:03:04.1]} 4... Nfd7 {[%clk 0:02:59.4]} 5. f4 {[%clk 0:03:05.4]}
5... c5 {[%clk 0:03:00.4]} 6. Ngf3 {[%clk 0:03:06.4]} 6... Nc6 {[%clk
0:03:01.7]} 7. c3 {[%clk 0:03:07.5]} 7... cxd4 {[%clk 0:02:55.3]} 8. cxd4 {[%clk
0:03:07.4]} 8... Qb6 {[%clk 0:02:57]} 9. Nb3 {[%clk 0:03:08.4]} 9... Bb4+ {[%clk
0:02:55.4]} 10. Bd2 {[%clk 0:03:07.5]} 10... a5 {[%clk 0:02:56.3]} 11. Bxb4
{[%clk 0:02:50.5]} 11... Qxb4+ {[%clk 0:02:49.9]} 12. Qd2 {[%clk 0:02:50.8]}
12... Qb6 {[%clk 0:02:50.3]} 13. Rc1 {[%clk 0:02:47.8]} 13... a4 {[%clk
0:02:49.4]} 14. Nc5 {[%clk 0:02:48.6]} 14... a3 {[%clk 0:02:49.4]} 15. b3 {[%clk
0:02:43.6]} 15... O-O {[%clk 0:02:38.9]} 16. Na4 {[%clk 0:02:42.1]} 16... Qb4
{[%clk 0:02:33.9]} 17. Be2 {[%clk 0:02:43]} 17... Qxd2+ {[%clk 0:02:29]} 18.
Kxd2 {[%clk 0:02:44.9]} 18... Nb4 {[%clk 0:02:28.7]} 19. Rc7 {[%clk 0:02:23.2]}
19... Nxa2 {[%clk 0:02:20.6]} 20. Ra1 {[%clk 0:02:22.2]} 20... Nb4 {[%clk
0:02:19.9]} 21. Rxa3 {[%clk 0:02:22]} 21... Nb6 {[%clk 0:02:17.7]} 22. Bb5
{[%clk 0:02:15.9]} 22... Nxa4 {[%clk 0:02:10.6]} 23. Rxa4 {[%clk 0:02:14.1]}
23... Na6 {[%clk 0:02:10.9]} 24. Bxa6 {[%clk 0:02:09.7]} 24... bxa6 {[%clk
0:02:12.8]} 25. Rb4 {[%clk 0:02:04.7]} 25... a5 {[%clk 0:02:08.2]} 26. Ra4
{[%clk 0:02:00.4]} 26... h6 {[%clk 0:02:09.4]} 27. Rc5 {[%clk 0:02:00.7]} 27...
Rb8 {[%clk 0:02:06.1]} 28. Kc3 {[%clk 0:01:59]} 28... Ba6 {[%clk 0:02:06.1]} 29.
Raxa5 {[%clk 0:01:57.3]} 29... Bf1 {[%clk 0:02:07.3]} 30. g3 {[%clk 0:01:58.4]}
30... Bg2 {[%clk 0:02:04.6]} 31. Nd2 {[%clk 0:01:58.7]} 31... Rb7 {[%clk
0:01:52.2]} 32. b4 {[%clk 0:01:57.9]} 32... Rfb8 {[%clk 0:01:50.5]} 33. b5
{[%clk 0:01:58.9]} 33... g5 {[%clk 0:01:48.5]} 34. Kb4 {[%clk 0:01:55.6]} 34...
Kg7 {[%clk 0:01:47.1]} 35. Rc6 {[%clk 0:01:43.6]} 35... Kg6 {[%clk 0:01:45.5]}
36. Kc5 {[%clk 0:01:43.5]} 36... gxf4 {[%clk 0:01:45.1]} 37. gxf4 {[%clk
0:01:44.7]} 37... Kf5 {[%clk 0:01:46]} 38. b6 {[%clk 0:01:45.3]} 38... Kxf4
{[%clk 0:01:44.6]} 39. Ra7 {[%clk 0:01:43.8]} 39... h5 {[%clk 0:01:40.2]} 40.
Rxb7 {[%clk 0:01:39.9]} 40... Rxb7 {[%clk 0:01:42.1]} 41. Rc7 {[%clk 0:01:41.4]}
41... Rb8 {[%clk 0:01:42.8]} 42. b7 {[%clk 0:01:41.4]} 42... Ke3 {[%clk
0:01:39]} 43. Nb3 {[%clk 0:01:41.5]} 43... Bf1 {[%clk 0:01:36.3]} 44. Kb6 {[%clk
0:01:41.7]} 44... Bc4 {[%clk 0:01:34.2]} 45. Nc5 {[%clk 0:01:36.1]} 45... Kxd4
{[%clk 0:01:33]} 46. Rxf7 {[%clk 0:01:32.1]} 46... Kxe5 {[%clk 0:01:32.1]} 47.
Nd7+ {[%clk 0:01:33.2]} 1-0

[Event "*** MasterClass Titled Tuesday Blitz"]
[Site "Chess.com"]
[Date "2017.11.07"]
[Round "9"]
[White "KamilPlichta"]
[Black "bugsbunny444"]
[Result "1-0"]
[WhiteElo "2569"]
[BlackElo "2421"]
[TimeControl "180+2"]
[EndTime "16:06:11 PST"]
[Termination "KamilPlichta won by resignation"]

1. c4 {[%clk 0:03:01.9]} 1... b6 {[%clk 0:02:58.8]} 2. Nc3 {[%clk 0:03:02.4]}
2... Bb7 {[%clk 0:02:55.6]} 3. e4 {[%clk 0:03:03.6]} 3... e6 {[%clk 0:02:48.3]}
4. Nf3 {[%clk 0:03:04.7]} 4... Nf6 {[%clk 0:02:45.2]} 5. Bd3 {[%clk 0:03:03.6]}
5... c5 {[%clk 0:02:42]} 6. Bc2 {[%clk 0:02:55.2]} 6... Nc6 {[%clk 0:02:40.1]}
7. O-O {[%clk 0:02:51.1]} 7... Bd6 {[%clk 0:02:16.7]} 8. d4 {[%clk 0:02:33.5]}
8... cxd4 {[%clk 0:02:08.3]} 9. Nb5 {[%clk 0:02:34.6]} 9... Bc5 {[%clk
0:01:59.4]} 10. Bg5 {[%clk 0:02:06.3]} 10... h6 {[%clk 0:01:58]} 11. Bh4 {[%clk
0:02:07.6]} 11... a6 {[%clk 0:01:46.7]} 12. Nbxd4 {[%clk 0:02:06.7]} 12... Nxd4
{[%clk 0:01:48.1]} 13. Nxd4 {[%clk 0:02:08]} 13... g5 {[%clk 0:01:49.7]} 14. Bg3
{[%clk 0:02:04.1]} 14... Nxe4 {[%clk 0:01:50.9]} 15. Be5 {[%clk 0:02:02.4]}
15... f6 {[%clk 0:01:47.5]} 16. Bg3 {[%clk 0:01:27.4]} 16... O-O {[%clk
0:01:38.7]} 17. Qh5 {[%clk 0:01:23.2]} 17... Kg7 {[%clk 0:01:29.9]} 18. Nb3
{[%clk 0:01:23.9]} 18... Qe8 {[%clk 0:01:22.3]} 19. Qxe8 {[%clk 0:01:05.1]}
19... Rfxe8 {[%clk 0:01:21.3]} 20. Rfd1 {[%clk 0:01:06.2]} 20... Re7 {[%clk
0:00:48.3]} 21. Bxe4 {[%clk 0:01:02.8]} 21... Bxe4 {[%clk 0:00:49.4]} 22. Nxc5
{[%clk 0:01:04.3]} 22... bxc5 {[%clk 0:00:50.1]} 23. Bd6 {[%clk 0:01:05.7]}
23... Rf7 {[%clk 0:00:49.8]} 24. Bxc5 {[%clk 0:01:07]} 24... Rc8 {[%clk
0:00:50.6]} 25. b4 {[%clk 0:01:07.5]} 25... a5 {[%clk 0:00:40.3]} 26. a3 {[%clk
0:01:06.9]} 26... d5 {[%clk 0:00:41.1]} 27. cxd5 {[%clk 0:01:07.6]} 27... Bxd5
{[%clk 0:00:41.2]} 28. f3 {[%clk 0:01:01.6]} 28... h5 {[%clk 0:00:41.6]} 29.
Rac1 {[%clk 0:01:00]} 29... a4 {[%clk 0:00:42.4]} 30. Kf2 {[%clk 0:00:57.7]}
30... g4 {[%clk 0:00:39.8]} 31. Rd4 {[%clk 0:00:55.7]} 31... f5 {[%clk
0:00:38.7]} 32. f4 {[%clk 0:00:55.5]} 32... Rb7 {[%clk 0:00:36.4]} 33. Rxd5
{[%clk 0:00:53.5]} 1-0

[Event "*** MasterClass Titled Tuesday Blitz"]
[Site "Chess.com"]
[Date "2017.11.07"]
[Round "9"]
[White "wonderfultime"]
[Black "michaelq2d5"]
[Result "1-0"]
[WhiteElo "2766"]
[BlackElo "2641"]
[TimeControl "180+2"]
[EndTime "16:06:21 PST"]
[Termination "wonderfultime won by resignation"]

1. d4 {[%clk 0:03:01.9]} 1... Nf6 {[%clk 0:03:00.1]} 2. Bf4 {[%clk 0:03:02.8]}
2... d5 {[%clk 0:03:01.2]} 3. e3 {[%clk 0:03:04.1]} 3... c5 {[%clk 0:03:02.6]}
4. c3 {[%clk 0:03:05.4]} 4... Nc6 {[%clk 0:03:04]} 5. Nd2 {[%clk 0:03:05.7]}
5... Qb6 {[%clk 0:03:05.1]} 6. Qb3 {[%clk 0:03:04.2]} 6... c4 {[%clk 0:03:06.4]}
7. Qc2 {[%clk 0:03:03.4]} 7... Nh5 {[%clk 0:03:07.6]} 8. Bg3 {[%clk 0:03:01.1]}
8... Nxg3 {[%clk 0:02:50.1]} 9. hxg3 {[%clk 0:03:03]} 9... g6 {[%clk 0:02:47.8]}
10. e4 {[%clk 0:03:00.9]} 10... e6 {[%clk 0:02:49.2]} 11. Ngf3 {[%clk
0:02:59.8]} 11... Bd7 {[%clk 0:02:46.4]} 12. Be2 {[%clk 0:02:54]} 12... Bg7
{[%clk 0:02:47.1]} 13. e5 {[%clk 0:02:37.1]} 13... f6 {[%clk 0:02:27.9]} 14.
Rxh7 {[%clk 0:02:29.2]} 14... Rxh7 {[%clk 0:02:22.2]} 15. Qxg6+ {[%clk
0:02:29.9]} 15... Kf8 {[%clk 0:02:23.8]} 16. Qxh7 {[%clk 0:02:31.1]} 16... fxe5
{[%clk 0:02:09.4]} 17. Ng5 {[%clk 0:02:19.5]} 17... Qd8 {[%clk 0:01:44.5]} 18.
Qg6 {[%clk 0:01:52.5]} 18... Qe7 {[%clk 0:01:44.2]} 19. O-O-O {[%clk 0:01:31.8]}
19... Nd8 {[%clk 0:00:52]} 20. Rh1 {[%clk 0:01:23.9]} 20... Nf7 {[%clk
0:00:52.4]} 21. Ndf3 {[%clk 0:01:11.2]} 21... e4 {[%clk 0:00:34.2]} 22. Rh7
{[%clk 0:01:06.6]} 22... Nxg5 {[%clk 0:00:14.9]} 23. Nxg5 {[%clk 0:01:04.2]}
23... Qf6 {[%clk 0:00:16]} 24. Qxf6+ {[%clk 0:01:00.8]} 24... Bxf6 {[%clk
0:00:16.7]} 25. Rf7+ {[%clk 0:01:02.7]} 25... Ke8 {[%clk 0:00:17.1]} 26. Rxf6
{[%clk 0:01:04.6]} 26... Ke7 {[%clk 0:00:18.7]} 27. Rf7+ {[%clk 0:01:04.7]}
27... Kd6 {[%clk 0:00:20.2]} 28. Rh7 {[%clk 0:00:59.4]} 28... Bc6 {[%clk
0:00:21.2]} 29. Nf7+ {[%clk 0:01:00.5]} 29... Kc7 {[%clk 0:00:20.9]} 30. Ne5+
{[%clk 0:01:01.7]} 30... Kd6 {[%clk 0:00:22.6]} 31. g4 {[%clk 0:01:00.5]} 31...
Rf8 {[%clk 0:00:22.5]} 32. f3 {[%clk 0:01:01.9]} 32... e3 {[%clk 0:00:22]} 33.
g5 {[%clk 0:01:00.3]} 33... Rg8 {[%clk 0:00:19]} 34. f4 {[%clk 0:01:00.3]} 34...
b5 {[%clk 0:00:17.1]} 35. Rxa7 {[%clk 0:00:58.4]} 35... Rh8 {[%clk 0:00:18.3]}
1-0

[Event "*** MasterClass Titled Tuesday Blitz"]
[Site "Chess.com"]
[Date "2017.11.07"]
[Round "9"]
[White "AbdAlAgathos"]
[Black "MartinZumsande"]
[Result "0-1"]
[WhiteElo "2220"]
[BlackElo "2432"]
[TimeControl "180+2"]
[EndTime "16:06:22 PST"]
[Termination "MartinZumsande won by resignation"]

1. e4 {[%clk 0:03:01.9]} 1... e6 {[%clk 0:03:00.6]} 2. d4 {[%clk 0:03:01.8]}
2... d5 {[%clk 0:03:02]} 3. Nd2 {[%clk 0:03:03.7]} 3... Nf6 {[%clk 0:03:02.7]}
4. e5 {[%clk 0:03:04.3]} 4... Nfd7 {[%clk 0:03:04.2]} 5. c3 {[%clk 0:03:05.7]}
5... c5 {[%clk 0:03:05.6]} 6. Bd3 {[%clk 0:03:06.7]} 6... b6 {[%clk 0:03:06.8]}
7. Ne2 {[%clk 0:03:03.4]} 7... Ba6 {[%clk 0:03:07.7]} 8. Bxa6 {[%clk 0:03:04.5]}
8... Nxa6 {[%clk 0:03:09.6]} 9. O-O {[%clk 0:03:06]} 9... Nc7 {[%clk 0:03:10.1]}
10. f4 {[%clk 0:03:07.5]} 10... f5 {[%clk 0:03:10.1]} 11. exf6 {[%clk
0:03:00.8]} 11... Nxf6 {[%clk 0:03:10.4]} 12. f5 {[%clk 0:02:41.9]} 12... Bd6
{[%clk 0:03:06.5]} 13. fxe6 {[%clk 0:02:36.2]} 13... Nxe6 {[%clk 0:03:06.7]} 14.
Nf3 {[%clk 0:02:36.2]} 14... O-O {[%clk 0:03:04.5]} 15. Kh1 {[%clk 0:02:15.6]}
15... c4 {[%clk 0:03:00.7]} 16. Ne5 {[%clk 0:02:14.1]} 16... Qc7 {[%clk
0:02:58.5]} 17. Nf4 {[%clk 0:02:09.5]} 17... Rae8 {[%clk 0:02:51.3]} 18. Nxe6
{[%clk 0:01:40.5]} 18... Rxe6 {[%clk 0:02:50.3]} 19. Bf4 {[%clk 0:01:41.6]}
19... Ne4 {[%clk 0:02:42.7]} 20. Qg4 {[%clk 0:01:38.8]} 20... Ref6 {[%clk
0:02:37.2]} 21. g3 {[%clk 0:01:29.1]} 21... b5 {[%clk 0:01:59.9]} 22. Rae1
{[%clk 0:00:57.5]} 22... a5 {[%clk 0:01:58.2]} 23. Kg2 {[%clk 0:00:53.9]} 23...
b4 {[%clk 0:01:57.6]} 24. Qh5 {[%clk 0:00:27.4]} 24... bxc3 {[%clk 0:01:38.5]}
25. bxc3 {[%clk 0:00:27.4]} 25... Bxe5 {[%clk 0:01:13.4]} 26. dxe5 {[%clk
0:00:25.1]} 26... Rf5 {[%clk 0:01:07.6]} 27. e6 {[%clk 0:00:13.9]} 27... Qxf4
{[%clk 0:00:54.5]} 28. Qf7+ {[%clk 0:00:14.9]} 28... R5xf7 {[%clk 0:00:51.1]}
29. exf7+ {[%clk 0:00:16.8]} 29... Qxf7 {[%clk 0:00:52]} 30. Rxf7 {[%clk
0:00:17.8]} 30... Kxf7 {[%clk 0:00:52.5]} 31. Re3 {[%clk 0:00:19.7]} 31... Ke6
{[%clk 0:00:53.1]} 0-1

[Event "*** MasterClass Titled Tuesday Blitz"]
[Site "Chess.com"]
[Date "2017.11.07"]
[Round "9"]
[White "Genghis_K"]
[Black "igorkovalenko"]
[Result "1-0"]
[WhiteElo "2679"]
[BlackElo "2771"]
[TimeControl "180+2"]
[EndTime "16:06:23 PST"]
[Termination "Genghis_K won on time"]

1. e4 {[%clk 0:03:00.7]} 1... e6 {[%clk 0:02:59.9]} 2. d4 {[%clk 0:02:56.9]}
2... d5 {[%clk 0:03:01.2]} 3. Nc3 {[%clk 0:02:58.3]} 3... Bb4 {[%clk 0:03:01.8]}
4. exd5 {[%clk 0:02:59.3]} 4... exd5 {[%clk 0:03:03.6]} 5. Bd3 {[%clk
0:03:00.7]} 5... Nc6 {[%clk 0:03:04.6]} 6. Ne2 {[%clk 0:03:01.7]} 6... Nge7
{[%clk 0:03:04.9]} 7. O-O {[%clk 0:03:02.4]} 7... Bf5 {[%clk 0:03:05.6]} 8. a3
{[%clk 0:03:03.1]} 8... Ba5 {[%clk 0:03:04.3]} 9. Bf4 {[%clk 0:02:46.7]} 9...
O-O {[%clk 0:03:04.4]} 10. h3 {[%clk 0:02:37.8]} 10... Qd7 {[%clk 0:02:56.9]}
11. Bg3 {[%clk 0:02:38.1]} 11... Rae8 {[%clk 0:02:50.2]} 12. Na4 {[%clk
0:02:31.3]} 12... Bb6 {[%clk 0:02:50.6]} 13. Nc5 {[%clk 0:02:31]} 13... Bxc5
{[%clk 0:02:51.5]} 14. dxc5 {[%clk 0:02:32]} 14... Bxd3 {[%clk 0:02:52.3]} 15.
Qxd3 {[%clk 0:02:32.8]} 15... Nf5 {[%clk 0:02:53.3]} 16. Bf4 {[%clk 0:02:33.3]}
16... Re4 {[%clk 0:02:52.2]} 17. Bh2 {[%clk 0:02:19.8]} 17... Rfe8 {[%clk
0:02:51.6]} 18. Nc3 {[%clk 0:02:21.3]} 18... Rd4 {[%clk 0:02:52.5]} 19. Qb5
{[%clk 0:02:18.4]} 19... Rb8 {[%clk 0:02:17.4]} 20. Rad1 {[%clk 0:02:11.1]}
20... a6 {[%clk 0:02:18.7]} 21. Qe2 {[%clk 0:02:08.9]} 21... Re8 {[%clk
0:02:19.3]} 22. Qf3 {[%clk 0:02:10.4]} 22... Rxd1 {[%clk 0:01:50.4]} 23. Rxd1
{[%clk 0:02:11]} 23... d4 {[%clk 0:01:39.6]} 24. Nd5 {[%clk 0:02:07.9]} 24...
Nh4 {[%clk 0:01:39]} 25. Qh5 {[%clk 0:02:04.5]} 25... d3 {[%clk 0:00:34.9]} 26.
Ne3 {[%clk 0:01:31.2]} 26... Ng6 {[%clk 0:00:06.4]} 27. Rxd3 {[%clk 0:01:26.7]}
27... Qe7 {[%clk 0:00:07.4]} 28. b4 {[%clk 0:01:18.8]} 28... Qe6 {[%clk
0:00:07.3]} 29. Bg3 {[%clk 0:01:17.3]} 29... Nge5 {[%clk 0:00:07.8]} 30. Rd1
{[%clk 0:01:15.5]} 30... Nc4 {[%clk 0:00:06.2]} 31. Nd5 {[%clk 0:01:11.6]} 31...
Rd8 {[%clk 0:00:04.7]} 32. Nxc7 {[%clk 0:01:07.7]} 32... Rxd1+ {[%clk
0:00:03.8]} 33. Qxd1 {[%clk 0:01:09.6]} 1-0

[Event "*** MasterClass Titled Tuesday Blitz"]
[Site "Chess.com"]
[Date "2017.11.07"]
[Round "9"]
[White "northridgehawk"]
[Black "AllStarShark"]
[Result "1/2-1/2"]
[WhiteElo "1948"]
[BlackElo "2241"]
[TimeControl "180+2"]
[EndTime "16:06:41 PST"]
[Termination "Game drawn by repetition"]

1. d4 {[%clk 0:02:33.1]} 1... d5 {[%clk 0:02:59.8]} 2. c4 {[%clk 0:02:34.2]}
2... dxc4 {[%clk 0:02:57.3]} 3. e3 {[%clk 0:02:33.5]} 3... e5 {[%clk 0:02:57]}
4. Nf3 {[%clk 0:02:32.2]} 4... exd4 {[%clk 0:02:42]} 5. exd4 {[%clk 0:02:31.6]}
5... Bd6 {[%clk 0:02:33.3]} 6. Bxc4 {[%clk 0:02:30.9]} 6... Nf6 {[%clk
0:02:33.8]} 7. O-O {[%clk 0:02:30.7]} 7... O-O {[%clk 0:02:29.1]} 8. Nc3 {[%clk
0:02:27.6]} 8... Nc6 {[%clk 0:02:24.9]} 9. a3 {[%clk 0:02:21.6]} 9... Bg4 {[%clk
0:02:24.8]} 10. h3 {[%clk 0:02:16.8]} 10... Bxf3 {[%clk 0:02:23.4]} 11. Qxf3
{[%clk 0:02:09.5]} 11... Nxd4 {[%clk 0:02:16.7]} 12. Qxb7 {[%clk 0:02:07.8]}
12... Rb8 {[%clk 0:01:53.8]} 13. Qa6 {[%clk 0:01:56.8]} 13... Rb6 {[%clk
0:01:43.8]} 14. Qxa7 {[%clk 0:01:54.4]} 14... Ng4 {[%clk 0:01:23.1]} 15. Ne4
{[%clk 0:01:08.9]} 15... Qh4 {[%clk 0:01:05.5]} 16. Nxd6 {[%clk 0:01:04.6]}
16... Rxd6 {[%clk 0:00:58.9]} 17. Bf4 {[%clk 0:01:03.7]} 17... Nf3+ {[%clk
0:00:40.2]} 18. gxf3 {[%clk 0:00:52.2]} 18... Qxh3 {[%clk 0:00:39.7]} 19. fxg4
{[%clk 0:00:48.5]} 19... Qxg4+ {[%clk 0:00:17.4]} 20. Bg3 {[%clk 0:00:48]} 20...
Rh6 {[%clk 0:00:16.7]} 21. Rac1 {[%clk 0:00:45.3]} 21... Qf3 {[%clk 0:00:16.1]}
22. Bh2 {[%clk 0:00:20.3]} 22... Rg6+ {[%clk 0:00:15.5]} 23. Bg3 {[%clk
0:00:21.5]} 23... Rh6 {[%clk 0:00:14.2]} 24. Bh2 {[%clk 0:00:20.8]} 24... Rg6+
{[%clk 0:00:14.7]} 25. Bg3 {[%clk 0:00:21.5]} 25... Rxg3+ {[%clk 0:00:14.9]} 26.
fxg3 {[%clk 0:00:21.6]} 26... Qxg3+ {[%clk 0:00:16.5]} 27. Kh1 {[%clk
0:00:22.9]} 27... Qh3+ {[%clk 0:00:17.6]} 28. Kg1 {[%clk 0:00:24.3]} 28... Qg3+
{[%clk 0:00:18.8]} 29. Kh1 {[%clk 0:00:26.2]} 29... Qh3+ {[%clk 0:00:20]} 30.
Kg1 {[%clk 0:00:28.1]} 30... Qg3+ {[%clk 0:00:21.4]} 1/2-1/2

[Event "*** MasterClass Titled Tuesday Blitz"]
[Site "Chess.com"]
[Date "2017.11.07"]
[Round "9"]
[White "TijanaBlagojevic"]
[Black "VladDobrov"]
[Result "0-1"]
[WhiteElo "2259"]
[BlackElo "2653"]
[TimeControl "180+2"]
[EndTime "16:06:51 PST"]
[Termination "VladDobrov won by resignation"]

1. e4 {[%clk 0:03:01.9]} 1... c5 {[%clk 0:03:00.4]} 2. Nf3 {[%clk 0:03:03.1]}
2... d6 {[%clk 0:03:00.9]} 3. Bb5+ {[%clk 0:03:04.1]} 3... Bd7 {[%clk
0:03:00.8]} 4. c4 {[%clk 0:03:05.3]} 4... Nc6 {[%clk 0:03:00.1]} 5. Nc3 {[%clk
0:03:04.9]} 5... e5 {[%clk 0:03:00.5]} 6. d3 {[%clk 0:03:04.6]} 6... Nge7 {[%clk
0:02:59]} 7. Nd5 {[%clk 0:03:01.3]} 7... Ng6 {[%clk 0:02:53.8]} 8. O-O {[%clk
0:03:01.1]} 8... Be7 {[%clk 0:02:54.6]} 9. b4 {[%clk 0:03:02.3]} 9... cxb4
{[%clk 0:02:53.4]} 10. a3 {[%clk 0:03:02.8]} 10... bxa3 {[%clk 0:02:52.5]} 11.
Bxa3 {[%clk 0:03:03.7]} 11... O-O {[%clk 0:02:52.9]} 12. Re1 {[%clk 0:02:41.2]}
12... f5 {[%clk 0:02:51.5]} 13. exf5 {[%clk 0:02:37.8]} 13... Bxf5 {[%clk
0:02:47.3]} 14. Ne3 {[%clk 0:02:38.3]} 14... Be6 {[%clk 0:02:41.8]} 15. d4
{[%clk 0:02:39.1]} 15... Nxd4 {[%clk 0:02:31.7]} 16. Nxd4 {[%clk 0:02:38.4]}
16... exd4 {[%clk 0:02:33.6]} 17. Qxd4 {[%clk 0:02:34.3]} 17... Bf6 {[%clk
0:02:31]} 18. Qe4 {[%clk 0:02:35.4]} 18... Bf7 {[%clk 0:02:20.9]} 19. Rad1
{[%clk 0:01:57.2]} 19... a6 {[%clk 0:02:20.8]} 20. Ba4 {[%clk 0:01:56]} 20...
Qa5 {[%clk 0:02:20.3]} 21. Bxd6 {[%clk 0:01:34.9]} 21... Rfd8 {[%clk 0:02:20.2]}
22. c5 {[%clk 0:01:15.1]} 22... Rac8 {[%clk 0:01:46.6]} 23. Rf1 {[%clk 0:00:57]}
23... b5 {[%clk 0:01:43]} 24. Bc2 {[%clk 0:00:54.2]} 24... Re8 {[%clk
0:01:43.8]} 25. Qd3 {[%clk 0:00:51.8]} 25... Rcd8 {[%clk 0:01:31.5]} 26. Bb3
{[%clk 0:00:41.2]} 26... Bxb3 {[%clk 0:01:00.9]} 27. Qxb3+ {[%clk 0:00:40.8]}
27... Kh8 {[%clk 0:01:02.8]} 28. Ng4 {[%clk 0:00:38.4]} 28... Qc3 {[%clk
0:00:53.7]} 29. Qa2 {[%clk 0:00:35.5]} 29... Bd4 {[%clk 0:00:42.3]} 30. Qxa6
{[%clk 0:00:35.3]} 30... b4 {[%clk 0:00:42.8]} 31. Qd3 {[%clk 0:00:32.5]} 31...
Qxd3 {[%clk 0:00:36]} 32. Rxd3 {[%clk 0:00:34.3]} 32... Bxc5 {[%clk 0:00:37.3]}
33. Bxc5 {[%clk 0:00:28.5]} 33... Rxd3 {[%clk 0:00:36.5]} 34. Bxb4 {[%clk
0:00:29.6]} 34... Rd4 {[%clk 0:00:37.3]} 35. Ne3 {[%clk 0:00:22.1]} 35... Rxb4
{[%clk 0:00:37.6]} 0-1

[Event "*** MasterClass Titled Tuesday Blitz"]
[Site "Chess.com"]
[Date "2017.11.07"]
[Round "9"]
[White "Tarlev_Konstantin"]
[Black "ZapataCharlesS"]
[Result "0-1"]
[WhiteElo "2615"]
[BlackElo "2561"]
[TimeControl "180+2"]
[EndTime "16:07:05 PST"]
[Termination "ZapataCharlesS won by resignation"]

1. c4 {[%clk 0:03:01.9]} 1... Nf6 {[%clk 0:02:59.8]} 2. Nc3 {[%clk 0:03:03.1]}
2... e5 {[%clk 0:02:59.9]} 3. g3 {[%clk 0:03:03.7]} 3... Bc5 {[%clk 0:02:57.7]}
4. Bg2 {[%clk 0:03:03.7]} 4... O-O {[%clk 0:02:55.9]} 5. e3 {[%clk 0:03:04.6]}
5... c6 {[%clk 0:02:53.2]} 6. Nge2 {[%clk 0:03:04.3]} 6... d5 {[%clk 0:02:53.9]}
7. cxd5 {[%clk 0:03:04]} 7... cxd5 {[%clk 0:02:54.2]} 8. d4 {[%clk 0:03:05.5]}
8... exd4 {[%clk 0:02:53]} 9. exd4 {[%clk 0:03:06.4]} 9... Bb6 {[%clk 0:02:51]}
10. Bg5 {[%clk 0:03:02.4]} 10... Be6 {[%clk 0:02:49.9]} 11. O-O {[%clk
0:02:42.7]} 11... Nc6 {[%clk 0:02:42.2]} 12. h3 {[%clk 0:02:37.4]} 12... h6
{[%clk 0:02:39.7]} 13. Be3 {[%clk 0:02:38.5]} 13... Re8 {[%clk 0:02:35.5]} 14.
Nf4 {[%clk 0:02:37.8]} 14... Qd7 {[%clk 0:02:33.4]} 15. Kh2 {[%clk 0:02:37.1]}
15... Ne7 {[%clk 0:02:29.8]} 16. Qd3 {[%clk 0:02:15.2]} 16... Nf5 {[%clk
0:02:28.8]} 17. Rfe1 {[%clk 0:02:06.3]} 17... Nxe3 {[%clk 0:02:25.2]} 18. Rxe3
{[%clk 0:02:07.1]} 18... Bf5 {[%clk 0:02:27.1]} 19. Rxe8+ {[%clk 0:01:50]} 19...
Rxe8 {[%clk 0:02:26.6]} 20. Qd2 {[%clk 0:01:51.5]} 20... Ne4 {[%clk 0:02:14.8]}
21. Nxe4 {[%clk 0:01:37.6]} 21... dxe4 {[%clk 0:02:16.7]} 22. Rd1 {[%clk
0:01:36.1]} 22... g5 {[%clk 0:02:01.8]} 23. Ne2 {[%clk 0:01:36.7]} 23... Qd6
{[%clk 0:02:03.1]} 24. Nc3 {[%clk 0:01:25.1]} 24... Bg6 {[%clk 0:01:55.4]} 25.
Qe2 {[%clk 0:01:05.9]} 25... f5 {[%clk 0:01:52.8]} 26. Kg1 {[%clk 0:01:03.3]}
26... Kh7 {[%clk 0:01:53.3]} 27. g4 {[%clk 0:01:00.5]} 27... fxg4 {[%clk
0:01:49.8]} 28. hxg4 {[%clk 0:01:01.6]} 28... Bc7 {[%clk 0:01:51.4]} 29. Kf1
{[%clk 0:00:57.7]} 29... Qh2 {[%clk 0:01:45.5]} 30. Nd5 {[%clk 0:00:58.3]} 30...
Bd8 {[%clk 0:01:40]} 31. Rc1 {[%clk 0:00:57.5]} 31... a6 {[%clk 0:01:36.7]} 32.
Qe3 {[%clk 0:00:44.8]} 32... Qd6 {[%clk 0:01:24.9]} 33. Qb3 {[%clk 0:00:45]}
33... Bf7 {[%clk 0:01:20.1]} 34. Qxb7 {[%clk 0:00:19.2]} 34... Qxd5 {[%clk
0:01:19.6]} 35. Qxa6 {[%clk 0:00:20.5]} 35... Qe6 {[%clk 0:01:13]} 36. Qb7
{[%clk 0:00:20.2]} 36... Re7 {[%clk 0:01:12.7]} 37. Qa8 {[%clk 0:00:20]} 37...
Qd5 {[%clk 0:01:07.2]} 38. Qc8 {[%clk 0:00:19.2]} 38... Qxd4 {[%clk 0:01:03.3]}
39. Kg1 {[%clk 0:00:16.6]} 39... e3 {[%clk 0:01:03.3]} 40. fxe3 {[%clk
0:00:17.2]} 40... Qxe3+ {[%clk 0:01:03.8]} 41. Kh1 {[%clk 0:00:19.1]} 41... Bc7
{[%clk 0:01:01.7]} 42. Qf5+ {[%clk 0:00:12.8]} 42... Bg6 {[%clk 0:01:01.9]} 0-1